bitfinex-derivatives/quotes_SOLF0:USTF0_20240830
["timestamp","ask_amount","ask_price","bid_price","bid_amount"]
[1725028802266,3.6294,137.75,137.73,0.0491475]
[1725028802871,0.05344937,137.76,137.73,0.0491475]
[1725028804369,0.05344937,137.76,137.74,3.5959087]
[1725028804568,0.05344937,137.76,137.73,0.0491475]
[1725028805575,0.05344937,137.76,137.74,3.70298381]
[1725028806372,0.05344937,137.76,137.73,3.6787475]
[1725028806373,0.05344937,137.76,137.75,3.6292]
[1725028806567,224.0,137.85,137.75,7.5]
[1725028806870,43.171,137.87,137.76,43.1574]
[1725028807072,1.371,137.87,137.76,44.48]
[1725028807262,43.171,137.87,137.76,55.53002243]
[1725028807464,0.05148755,137.82,137.8,0.05153223]
[1725028809272,0.05148755,137.82,137.81,3.6276]
[1725028810675,4.96859138,137.9,137.81,41.8]
[1725028810876,3.6261,137.87,137.81,41.8]
[1725028811174,4.96859138,137.9,137.81,41.8]
[1725028811175,1.3013,137.9,137.81,41.8]
[1725028811378,3.6255,137.89,137.81,41.8]
[1725028811671,0.05270358,137.86,137.84,0.04863986]
[1725028811866,1.356,137.92,137.84,4.92316034]
[1725028812067,0.04937397,137.89,137.84,4.92316034]
[1725028812277,0.04937397,137.89,137.85,3.6264]
[1725028812476,0.04937397,137.89,137.84,4.92316034]
[1725028812673,0.04937397,137.89,137.85,41.8]
[1725028812880,0.04937397,137.89,137.88,3.6257]
[1725028813282,1.41,137.96,137.87,41.84734613]
[1725028813575,1.4215,138.0,137.9,41.8]
[1725028813964,3.6236,137.97,137.89,34.81]
[1725028814267,3.6236,137.97,137.89,42.31]
[1725028814473,0.04063424,137.94,137.92,0.04678963]
[1725028814665,0.04063424,137.94,137.92,0.05024008]
[1725028816369,3.66503424,137.94,137.92,0.05024008]
[1725028816571,0.04063424,137.94,137.92,0.05024008]
[1725028817878,34.81,137.93,137.88,3.55543358]
[1725028818076,34.81,137.93,137.88,3.54274726]
[1725028818278,7.52063424,137.94,137.84,4.85188291]
[1725028818279,42.059,137.91,137.84,4.85188291]
[1725028818482,42.059,137.91,137.84,1.2892]
[1725028818680,42.059,137.91,137.84,36.0992]
[1725028818681,7.249,137.91,137.84,36.0992]
[1725028818877,0.0528814,137.89,137.86,0.05252566]
[1725028819179,3.6785814,137.89,137.86,3.76161321]
[1725028819374,0.0528814,137.89,137.86,0.05252566]
[1725028819966,0.0528814,137.89,137.86,3.75109664]
[1725028820167,0.0528814,137.89,137.86,0.05252566]
[1725028820372,0.0528814,137.89,137.86,38.50742584]
[1725028820583,0.0528814,137.89,137.86,34.86252566]
[1725028820779,0.0528814,137.89,137.86,3.60422721]
[1725028821578,0.0528814,137.89,137.87,3.6258]
[1725028822579,0.0528814,137.89,137.88,3.6257]
[1725028822773,0.0528814,137.89,137.86,3.60422721]
[1725028823880,0.0528814,137.89,137.86,7.23032721]
[1725028824074,0.0528814,137.89,137.86,3.60422721]
[1725028824680,0.0528814,137.89,137.87,3.6258]
[1725028826169,0.0528814,137.89,137.86,7.23042721]
[1725028826978,0.0528814,137.89,137.86,3.60422721]
[1725028827579,0.0528814,137.89,137.86,7.23032721]
[1725028827975,0.0528814,137.89,137.86,3.60422721]
[1725028828172,0.0528814,137.89,137.88,3.6257]
[1725028828384,1.2896,137.96,137.86,45.84170155]
[1725028828580,3.6243,137.94,137.9,3.6251]
[1725028828772,38.48475939,137.97,137.9,3.6251]
[1725028828971,38.48475939,137.97,137.86,38.36170155]
[1725028828972,34.81,137.97,137.88,34.81]
[1725028829178,3.59536196,137.99,137.9,34.81]
[1725028829483,0.03799292,137.96,137.93,0.05125419]
[1725028829780,0.03799292,137.96,137.94,3.64213031]
[1725028830079,3.66179292,137.96,137.93,0.05125419]
[1725028830285,3.66179292,137.96,137.93,3.68722123]
[1725028830486,0.03799292,137.96,137.93,0.05125419]
[1725028830677,3.6242,137.94,137.93,0.05125419]
[1725028831582,34.81,137.95,137.86,3.59681214]
[1725028831583,3.6256,137.89,137.86,3.59681214]
[1725028831787,34.81,137.92,137.85,7.48]
[1725028832094,3.6251,137.91,137.85,11.1535756]
[1725028832384,34.81,137.92,137.85,11.1535756]
[1725028832678,0.05122101,137.9,137.87,0.05280047]
[1725028834381,3.67652101,137.9,137.87,0.05280047]
[1725028834586,0.05122101,137.9,137.87,0.05280047]
[1725028834783,45.95859612,137.99,137.88,34.81]
[1725028834980,34.81,137.99,137.88,34.81]
[1725028835386,3.57790651,137.98,137.88,34.81]
[1725028835585,3.57790651,137.98,137.91,3.6249]
[1725028835586,3.6238,137.96,137.91,3.6249]
[1725028835786,0.0380261,137.95,137.92,0.0529669]
[1725028835987,0.0380261,137.95,137.92,3.71967769]
[1725028837386,0.0380261,137.95,137.94,3.6242]
[1725028837783,0.0380261,137.95,137.93,3.6243]
[1725028837985,0.0380261,137.95,137.92,3.71967769]
[1725028838890,0.0380261,137.95,137.92,7.34417769]
[1725028839183,0.0380261,137.95,137.92,0.0529669]
[1725028839385,3.6243,137.94,137.92,0.0529669]
[1725028839581,0.0380261,137.95,137.93,3.6702621]
[1725028839793,0.0380261,137.95,137.92,0.0529669]
[1725028839994,3.6242,137.94,137.92,0.0529669]
[1725028840186,0.0380261,137.95,137.92,0.0529669]
[1725028840787,3.6242,137.94,137.92,0.0529669]
[1725028840995,0.0380261,137.95,137.92,3.63263209]
[1725028841184,0.0380261,137.95,137.92,0.0529669]
[1725028841383,3.6620261,137.95,137.92,0.0529669]
[1725028841584,3.6620261,137.95,137.92,3.6558249]
[1725028841788,0.0380261,137.95,137.92,3.60166572]
[1725028841997,3.6620261,137.95,137.92,0.0529669]
[1725028842186,3.6620261,137.95,137.92,3.75646135]
[1725028842386,0.0380261,137.95,137.92,0.0529669]
[1725028842596,0.0380261,137.95,137.92,3.69483311]
[1725028842895,0.0380261,137.95,137.92,0.0529669]
[1725028843087,0.0380261,137.95,137.93,3.6243]
[1725028843288,0.0380261,137.95,137.93,3.6244653]
[1725028843493,0.0380261,137.95,137.92,0.0529669]
[1725028843683,0.0380261,137.95,137.92,3.67924479]
[1725028843892,0.0380261,137.95,137.92,0.0529669]
[1725028844191,0.0380261,137.95,137.92,3.60384083]
[1725028844391,0.0380261,137.95,137.92,0.0529669]
[1725028844895,0.0380261,137.95,137.92,3.63661835]
[1725028845397,3.6621261,137.95,137.92,3.63661835]
[1725028845698,0.0380261,137.95,137.92,0.0529669]
[1725028846193,42.0970261,137.95,137.92,0.0529669]
[1725028846390,34.8480261,137.95,137.92,0.0529669]
[1725028846590,10.80547238,137.94,137.92,0.0529669]
[1725028846790,38.4344,137.93,137.92,0.0529669]
[1725028847396,49.25436788,137.93,137.92,0.0529669]
[1725028847985,42.00536788,137.93,137.92,0.0529669]
[1725028848499,49.25436788,137.93,137.92,0.0529669]
[1725028848697,49.25436788,137.93,137.85,3.6735756]
[1725028848698,3.6257,137.89,137.85,3.6735756]
[1725028848894,3.6257,137.89,137.84,3.6267]
[1725028849099,34.81,137.91,137.82,36.1961]
[1725028849399,34.81,137.91,137.82,1.3861]
[1725028849601,42.059,137.91,137.82,36.1961]
[1725028849800,0.05474341,137.88,137.85,0.05377554]
[1725028850097,0.05474341,137.88,137.85,3.74547305]
[1725028850294,0.05474341,137.88,137.85,0.05377554]
[1725028850895,0.05474341,137.88,137.85,3.61713553]
[1725028851196,0.05474341,137.88,137.85,0.05377554]
[1725028851598,0.05474341,137.88,137.86,3.6262]
[1725028851793,0.05474341,137.88,137.85,3.70958205]
[1725028852305,0.05474341,137.88,137.85,7.33598205]
[1725028853395,0.05474341,137.88,137.86,3.6261]
[1725028854492,0.05474341,137.88,137.85,7.33598205]
[1725028855703,0.05474341,137.88,137.85,3.70958205]
[1725028856692,0.05474341,137.88,137.85,0.05377554]
[1725028856900,38.4363,137.86,137.85,0.05377554]
[1725028857198,38.4363,137.86,137.78,3.67901417]
[1725028857199,45.87504956,137.86,137.78,3.67901417]
[1725028857400,34.81,137.83,137.75,2.7293]
[1725028857595,34.81,137.83,137.75,6.34558928]
[1725028857793,42.059,137.83,137.75,2.7293]
[1725028858101,0.05472162,137.8,137.78,0.05179673]
[1725028858495,0.05472162,137.8,137.78,3.62220006]
[1725028861906,36.1612,137.88,137.78,3.62220006]
[1725028862107,36.1612,137.88,137.78,3.57040333]
[1725028862108,43.6212,137.88,137.78,3.57040333]
[1725028862407,3.6266,137.85,137.8,3.6277]
[1725028862704,3.6266,137.85,137.8,7.2096092]
[1725028862904,0.05359129,137.84,137.81,0.04768127]
[1725028863499,3.68039129,137.84,137.81,0.04768127]
[1725028864206,0.05359129,137.84,137.81,0.04768127]
[1725028864595,3.6273,137.83,137.81,0.04768127]
[1725028865404,3.6273,137.82,137.81,0.04768127]
[1725028865601,0.05359129,137.84,137.81,0.04768127]
[1725028866008,3.6272,137.83,137.81,0.04768127]
[1725028866308,0.05359129,137.84,137.81,0.04768127]
[1725028866501,3.68049129,137.84,137.81,0.04768127]
[1725028866905,0.05359129,137.84,137.81,0.04768127]
[1725028867405,3.6273,137.82,137.81,0.04768127]
[1725028868509,34.81,137.82,137.73,1.3548]
[1725028868709,42.059,137.79,137.74,3.58573819]
[1725028868910,45.65562165,137.79,137.74,3.58573819]
[1725028869217,42.059,137.79,137.74,3.58573819]
[1725028869401,34.81,137.79,137.73,1.3548]
[1725028869711,0.04845351,137.78,137.75,0.05455042]
[1725028869911,3.6287,137.77,137.75,0.05455042]
[1725028870212,0.04845351,137.78,137.75,0.05455042]
[1725028870604,3.6289,137.76,137.75,0.05455042]
[1725028871000,7.29745351,137.78,137.71,3.6301]
[1725028871225,7.29745351,137.78,137.73,3.61623482]
[1725028871226,34.81,137.77,137.73,3.61623482]
[1725028871402,34.81,137.8,137.73,3.61623482]
[1725028871607,3.6291,137.76,137.71,3.6301]
[1725028871813,3.6291,137.76,137.71,3.71532466]
[1725028872002,3.70262084,137.79,137.68,42.27]
[1725028872204,3.70262084,137.79,137.71,0.04757951]
[1725028872205,0.05281384,137.73,137.71,0.04757951]
[1725028872511,0.04905564,137.73,137.71,0.04757951]
[1725028873113,0.04905564,137.73,137.71,3.67757951]
[1725028873710,0.04905564,137.73,137.72,3.63]
[1725028874011,3.6292,137.76,137.72,3.63]
[1725028874203,3.6292,137.76,137.72,4.9843]
[1725028874511,45.76125787,137.8,137.72,1.3543]
[1725028874714,45.97225787,137.8,137.69,34.81]
[1725028874920,3.6294,137.74,137.73,0.05284471]
[1725028875818,0.04729893,137.76,137.73,0.05284471]
[1725028876912,0.04729893,137.76,137.73,3.68244471]
[1725028877220,0.04729893,137.76,137.73,0.05284471]
[1725028877522,3.67639893,137.76,137.73,0.05284471]
[1725028878412,3.6292,137.75,137.73,0.05284471]
[1725028880015,3.67639893,137.76,137.73,0.05284471]
[1725028880322,0.04729893,137.76,137.73,0.05284471]
[1725028880917,3.6292,137.75,137.73,0.05284471]
[1725028881614,0.04729893,137.76,137.73,0.05284471]
[1725028882018,3.6294,137.74,137.73,0.05284471]
[1725028882511,10.93929893,137.76,137.73,0.05284471]
[1725028883017,10.93939893,137.76,137.73,0.05284471]
[1725028883216,3.67639893,137.76,137.73,0.05284471]
[1725028884117,3.67639893,137.76,137.73,3.68254471]
[1725028884118,0.04729893,137.76,137.73,3.68254471]
[1725028884313,0.04729893,137.76,137.73,0.05284471]
[1725028884715,0.04729893,137.76,137.73,3.68244471]
[1725028885216,0.04729893,137.76,137.73,0.05284471]
[1725028885928,3.67619893,137.76,137.73,0.05284471]
[1725028886226,0.04729893,137.76,137.73,0.05284471]
[1725028886420,0.04729893,137.76,137.73,3.68244471]
[1725028886712,0.04729893,137.76,137.73,0.05284471]
[1725028886914,3.67629893,137.76,137.73,0.05284471]
[1725028888019,3.67629893,137.76,137.73,3.68244471]
[1725028888410,3.67629893,137.76,137.73,0.05284471]
[1725028888411,0.04729893,137.76,137.73,0.05284471]
[1725028888631,0.04729893,137.76,137.74,3.6293]
[1725028889408,0.04729893,137.76,137.73,3.68244471]
[1725028890021,3.67629893,137.76,137.73,0.05284471]
[1725028891117,0.04729893,137.76,137.73,27.93284471]
[1725028891519,0.04729893,137.76,137.74,3.6293]
[1725028891720,0.04729893,137.76,137.73,27.93284471]
[1725028891922,0.04729893,137.76,137.75,27.88]
[1725028892121,1.3276,137.84,137.75,27.88]
[1725028892122,29.2076,137.84,137.75,27.88]
[1725028892313,1.328,137.86,137.77,27.88]
[1725028892314,36.668,137.86,137.77,27.88]
[1725028893011,0.05410672,137.83,137.8,0.04727672]
[1725028893920,3.6273,137.82,137.8,0.04727672]
[1725028894222,0.05410672,137.83,137.8,0.04727672]
[1725028894417,1.328,137.9,137.81,27.88]
[1725028894719,3.64273137,137.92,137.84,27.88]
[1725028894927,27.88,137.93,137.84,27.88]
[1725028894928,3.6251,137.91,137.86,3.6262]
[1725028895328,259.34,137.95,137.86,27.88]
[1725028895623,0.04181731,137.92,137.89,0.05396907]
[1725028896324,0.04181731,137.92,137.89,3.75424483]
[1725028896923,0.04181731,137.92,137.89,0.05396907]
[1725028897227,3.66651731,137.92,137.89,0.05396907]
[1725028897426,0.04181731,137.92,137.89,0.05396907]
[1725028899326,3.6252,137.9,137.89,0.05396907]
[1725028899526,34.81,137.91,137.81,1.3479]
[1725028899736,34.81,137.95,137.84,34.81]
[1725028900042,7.263,137.93,137.84,34.81]
[1725028900238,3.6244,137.94,137.84,34.81]
[1725028900239,7.263,137.94,137.84,42.25]
[1725028900436,0.05001719,137.9,137.88,3.67287329]
[1725028900737,0.05588293,137.9,137.88,7.23379344]
[1725028901234,11.15832483,137.97,137.88,38.41809344]
[1725028901443,36.1945,137.99,137.89,2.6369]
[1725028901444,43.6345,137.99,137.89,2.6369]
[1725028901627,3.6238,137.96,137.89,2.6369]
[1725028901830,34.81,137.97,137.89,2.6369]
[1725028902027,3.6241,137.95,137.89,2.6369]
[1725028902235,3.6241,137.95,137.89,6.2623]
[1725028902634,0.03990346,137.93,137.91,0.04819917]
[1725028903831,3.66440346,137.93,137.91,0.04819917]
[1725028904439,0.03990346,137.93,137.91,0.04819917]
[1725028905934,0.03990346,137.93,137.92,3.6247]
[1725028906329,34.81,138.01,137.91,34.81]
[1725028906531,42.073,138.01,137.91,34.81]
[1725028906732,1.2878,138.03,137.9,7.44]
[1725028906733,34.81,137.99,137.9,7.44]
[1725028906940,7.263,137.98,137.9,7.44]
[1725028907334,3.6238,137.96,137.93,0.04816366]
[1725028907634,34.81,137.97,137.93,0.04816366]
[1725028907935,3.6238,137.96,137.93,0.04816366]
[1725028908436,3.6236,137.97,137.93,0.04816366]
[1725028909041,3.6232,137.98,137.93,3.67256366]
[1725028909248,7.44,138.0,137.93,0.04816366]
[1725028910640,34.81,138.02,137.93,0.04816366]
[1725028910851,34.81,138.02,137.91,34.81]
[1725028910852,42.23,138.02,137.96,0.04721527]
[1725028911144,34.81,138.02,137.96,0.04721527]
[1725028911340,3.623,137.99,137.96,0.04721527]
[1725028911544,3.623,137.99,137.96,3.73187144]
[1725028911742,3.623,137.99,137.96,0.04721527]
[1725028913048,42.073,138.02,137.96,0.04721527]
[1725028913544,3.6234,137.97,137.96,0.04721527]
[1725028915653,3.6244,137.94,137.87,43.5522]
[1725028915836,3.6244,137.94,137.87,36.1322]
[1725028916036,3.6237,137.96,137.87,43.5522]
[1725028916247,10.91033127,137.99,137.87,43.5522]
[1725028916445,34.81,137.98,137.87,36.1322]
[1725028916645,3.6246,137.93,137.92,0.05568173]
[1725028916852,0.04721527,137.94,137.92,0.05568173]
[1725028918646,3.6244,137.93,137.92,0.05568173]
[1725028918849,0.04721527,137.94,137.92,0.05568173]
[1725028920844,0.04721527,137.94,137.92,3.68018173]
[1725028921946,0.04721527,137.94,137.92,0.05568173]
[1725028923250,0.04721527,137.94,137.92,3.68038173]
[1725028923952,0.04721527,137.94,137.92,0.05568173]
[1725028924752,0.04721527,137.94,137.67,15.61751461]
[1725028924753,7.42,137.93,137.77,7.2571]
[1725028924954,31.4754,137.9,137.81,27.85]
[1725028925253,27.85,137.9,137.81,31.50375956]
[1725028925651,27.85,137.88,137.81,3.65375956]
[1725028925851,7.42,137.91,137.83,0.0539883]
[1725028925852,0.05471831,137.86,137.83,0.0539883]
[1725028926246,0.05471831,137.86,137.85,3.6265]
[1725028926445,31.44576913,137.93,137.83,27.85]
[1725028926652,31.44576913,137.93,137.84,1.3104]
[1725028926854,38.86576913,137.93,137.84,1.3104]
[1725028927050,31.44576913,137.93,137.84,1.3104]
[1725028927249,3.6248,137.92,137.87,3.6258]
[1725028927448,0.04817869,137.91,137.88,0.04639715]
[1725028928651,27.85,137.9,137.81,3.69000358]
[1725028928853,27.85,137.86,137.78,27.85]
[1725028929052,27.85,137.86,137.8,3.64048302]
[1725028929253,3.65389915,137.85,137.77,2.6385]
[1725028929453,3.6265,137.86,137.81,3.6274]
[1725028929654,0.05523156,137.85,137.82,0.0486127]
[1725028930361,0.05523156,137.85,137.82,3.75616413]
[1725028930560,0.05523156,137.85,137.82,0.0486127]
[1725028930962,0.05523156,137.85,137.82,3.60564233]
[1725028931165,0.05523156,137.85,137.82,3.6757127]
[1725028931671,0.05523156,137.85,137.82,7.33647543]
[1725028932057,0.05523156,137.85,137.82,3.70937543]
[1725028932866,0.05523156,137.85,137.82,38.52937543]
[1725028933063,34.82,137.92,137.83,36.1285]
[1725028933264,3.6251,137.91,137.86,3.6261]
[1725028933462,3.6251,137.91,137.84,1.4274]
[1725028933963,0.03934428,137.89,137.86,0.05038283]
[1725028934559,0.03934428,137.89,137.88,3.6257]
[1725028935267,0.03934428,137.89,137.87,3.626]
[1725028935464,0.03934428,137.89,137.86,0.05038283]
[1725028935866,3.6259,137.88,137.86,0.05038283]
[1725028936266,3.66494428,137.89,137.86,0.05038283]
[1725028936568,0.03934428,137.89,137.86,0.05038283]
[1725028937766,34.82,137.88,137.86,0.05038283]
[1725028937967,3.626,137.87,137.86,0.05038283]
[1725028940359,3.626,137.87,137.78,2.7505]
[1725028940360,3.68215663,137.87,137.78,2.7505]
[1725028940559,34.82,137.86,137.78,6.31297656]
[1725028940760,34.82,137.86,137.78,2.7505]
[1725028940960,3.6267,137.85,137.8,3.6277]
[1725028941164,3.6267,137.85,137.8,7.33415531]
[1725028941370,0.05465263,137.84,137.81,0.05001789]
[1725028942278,34.87465263,137.84,137.81,0.05001789]
[1725028942570,3.6273,137.82,137.81,0.05001789]
[1725028942967,34.87465263,137.84,137.81,0.05001789]
[1725028943163,38.50145263,137.84,137.81,0.05001789]
[1725028943369,34.87465263,137.84,137.81,0.05001789]
[1725028943571,3.6271,137.83,137.81,0.05001789]
[1725028944067,3.6273,137.82,137.81,0.05001789]
[1725028945168,3.6271,137.83,137.81,0.05001789]
[1725028945871,38.50145263,137.84,137.81,0.05001789]
[1725028946067,34.87465263,137.84,137.81,0.05001789]
[1725028946372,3.68155263,137.84,137.81,0.05001789]
[1725028946577,0.05465263,137.84,137.81,0.05001789]
[1725028947066,3.6271,137.83,137.81,0.05001789]
[1725028947875,0.05465263,137.84,137.81,0.05001789]
[1725028949170,34.82,137.9,137.81,1.45811789]
[1725028949366,3.6256,137.89,137.84,3.6266]
[1725028949771,7.42,137.92,137.81,36.2281]
[1725028950071,7.42,137.92,137.85,3.6263]
[1725028950072,3.6252,137.9,137.85,3.6263]
[1725028950272,0.03507447,137.88,137.85,3.68182342]
[1725028950773,0.03507447,137.88,137.85,0.05552342]
[1725028951175,0.03507447,137.88,137.87,3.626]
[1725028951476,0.03507447,137.88,137.87,7.17634854]
[1725028954477,0.03507447,137.88,137.86,1.2994]
[1725028954867,0.03507447,137.88,137.86,4.92992886]
[1725028955673,0.03507447,137.88,137.86,8.55602886]
[1725028956879,0.03507447,137.88,137.85,1.48392342]
[1725028956880,3.71616288,137.88,137.85,0.05552342]
[1725028957065,34.82,137.87,137.85,0.05552342]
[1725028957270,3.6263,137.86,137.85,0.05552342]
[1725028957471,10.8893,137.86,137.85,0.05552342]
[1725028958078,0.03507447,137.88,137.85,0.05552342]
[1725028959980,7.29807447,137.88,137.85,0.05552342]
[1725028960279,0.03507447,137.88,137.85,0.05552342]
[1725028960680,3.6262,137.87,137.85,0.05552342]
[1725028960984,7.263,137.86,137.85,0.05552342]
[1725028961880,7.263,137.86,137.79,4.98382327]
[1725028962083,7.263,137.83,137.79,4.98382327]
[1725028962287,10.8902,137.83,137.79,4.98382327]
[1725028962991,0.05341239,137.82,137.8,0.04627028]
[1725028963677,0.05341239,137.82,137.8,3.67387028]
[1725028963875,0.05341239,137.82,137.8,0.04627028]
[1725028964079,0.05341239,137.82,137.8,1.34347028]
[1725028964781,0.05341239,137.82,137.8,4.97117028]
[1725028964975,0.05341239,137.82,137.8,1.34347028]
[1725028965281,0.05341239,137.82,137.8,0.04627028]
[1725028965489,3.68091239,137.82,137.8,0.04627028]
[1725028966384,3.6276,137.81,137.8,0.04627028]
[1725028966784,0.05341239,137.82,137.8,0.04627028]
[1725028966978,10.94381239,137.82,137.8,0.04627028]
[1725028967687,3.68081239,137.82,137.8,0.04627028]
[1725028969801,3.6276,137.81,137.8,0.04627028]
[1725028970582,42.12641239,137.82,137.72,2.6769]
[1725028970788,34.81,137.78,137.72,2.6769]
[1725028971287,3.6289,137.77,137.73,3.6295]
[1725028971686,0.04625119,137.76,137.74,0.04979523]
[1725028972392,0.04625119,137.76,137.75,3.6292]
[1725028972983,0.04625119,137.76,137.75,4.9407]
[1725028973186,7.263,137.8,137.78,3.6284]
[1725028973384,7.263,137.83,137.79,3.59202192]
[1725028973691,3.6277,137.81,137.78,3.6284]
[1725028973990,3.6277,137.81,137.78,3.69944145]
[1725028974187,3.67395614,137.81,137.78,0.05539777]
[1725028974493,0.04625614,137.81,137.78,0.05539777]
[1725028974786,0.04625614,137.81,137.78,3.71129076]
[1725028974991,0.04625614,137.81,137.78,0.05539777]
[1725028975385,0.04625614,137.81,137.78,3.61165299]
[1725028975591,0.04625614,137.81,137.78,0.05539777]
[1725028976489,0.04625614,137.81,137.8,3.6279]
[1725028976793,0.04625614,137.81,137.78,3.60004428]
[1725028977093,0.04625614,137.81,137.79,3.628]
[1725028977692,0.04625614,137.81,137.78,0.05539777]
[1725028978191,10.93705614,137.81,137.78,0.05539777]
[1725028978694,3.6291,137.76,137.75,3.66617518]
[1725028978891,3.6291,137.76,137.68,42.21]
[1725028979093,3.6291,137.76,137.69,1.3759]
[1725028979294,3.6292,137.75,137.71,3.6301]
[1725028979488,36.1164,137.8,137.63,44.9974]
[1725028979489,34.81,137.74,137.63,44.9974]
[1725028979683,0.04682643,137.7,137.67,0.05338496]
[1725028979884,0.04682643,137.7,137.68,3.6309]
[1725028980086,0.04682643,137.7,137.67,0.05338496]
[1725028980391,3.631,137.68,137.67,0.05338496]
[1725028980785,7.263,137.69,137.51,10.88411044]
[1725028980990,34.81,137.71,137.6,34.81]
[1725028981190,34.81,137.71,137.61,4.0682]
[1725028981485,3.6319,137.65,137.61,7.20310333]
[1725028981691,34.81,137.69,137.61,3.57040333]
[1725028981892,0.04724686,137.64,137.62,0.05354842]
[1725028982091,0.05124425,137.64,137.62,0.05354842]
[1725028982594,0.05124425,137.64,137.62,3.662079]
[1725028982792,0.05124425,137.64,137.62,0.05354842]
[1725028982990,3.68354425,137.64,137.62,0.05354842]
[1725028983389,0.05124425,137.64,137.62,0.05354842]
[1725028983586,0.05124425,137.64,137.51,7.2709]
[1725028983792,7.4,137.63,137.54,34.81]
[1725028984001,7.4,137.63,137.56,34.81]
[1725028984194,3.63649524,137.65,137.56,38.41199338]
[1725028984395,34.81,137.66,137.45,7.2739]
[1725028984699,0.04803678,137.59,137.57,0.05276051]
[1725028984894,7.4,137.63,137.6,3.6329]
[1725028985095,7.4,137.63,137.6,3.68547684]
[1725028985096,7.45315261,137.63,137.6,3.68547684]
[1725028985299,0.05315261,137.63,137.6,0.05257684]
[1725028985600,0.05315261,137.63,137.62,3.6326]
[1725028985909,0.05315261,137.63,137.6,0.05257684]
[1725028987197,3.68565261,137.63,137.6,0.05257684]
[1725028987394,0.05315261,137.63,137.6,0.05257684]
[1725028987703,0.05315261,137.63,137.6,34.86257684]
[1725028987906,0.05315261,137.63,137.62,34.81]
[1725028988101,0.05315261,137.63,137.6,34.86257684]
[1725028988608,0.05315261,137.63,137.62,3.6326]
[1725028989198,0.05315261,137.63,137.62,38.4426]
[1725028990297,3.6305,137.7,137.67,3.6312]
[1725028990592,7.4,137.72,137.64,34.81]
[1725028990794,3.6303,137.71,137.67,3.6311]
[1725028991403,0.04840297,137.7,137.68,0.05390106]
[1725028991906,0.04840297,137.7,137.69,3.6308]
[1725028992610,0.04840297,137.7,137.69,6.3184]
[1725028993808,0.04840297,137.7,137.68,0.05390106]
[1725028994302,0.04840297,137.7,137.69,3.6308]
[1725028996199,0.04840297,137.7,137.68,3.68480106]
[1725028996903,0.04840297,137.7,137.69,3.6308]
[1725028998006,1.3016,137.78,137.68,34.86390106]
[1725028998211,1.3016,137.78,137.7,34.81]
[1725028998510,67.55107471,137.8,137.75,3.6292]
[1725028998805,34.81,137.8,137.75,3.6292]
[1725028999006,3.6285,137.78,137.76,0.05234485]
[1725029000609,34.81,137.77,137.57,10.9013]
[1725029000922,34.81,137.77,137.67,5.08954944]
[1725029001109,7.263,137.76,137.67,1.4255]
[1725029001305,3.6296,137.74,137.67,1.4255]
[1725029001502,7.263,137.76,137.67,1.4255]
[1725029001503,0.05260304,137.72,137.69,0.05441411]
[1725029002605,3.68270304,137.72,137.69,3.68501411]
[1725029003109,0.05260304,137.72,137.7,3.6303]
[1725029003614,0.05260304,137.72,137.7,3.6304]
[1725029003805,3.68260304,137.72,137.7,3.6304]
[1725029004510,0.05260304,137.72,137.7,3.6305]
[1725029004912,0.05260304,137.72,137.69,3.68511411]
[1725029005106,0.05260304,137.72,137.69,0.05441411]
[1725029005306,34.81,137.71,137.69,0.05441411]
[1725029005518,10.8935,137.7,137.69,0.05441411]
[1725029007201,7.263,137.7,137.6,2.634]
[1725029007405,34.81,137.68,137.6,2.634]
[1725029007604,34.81,137.68,137.6,6.21928]
[1725029007807,34.81,137.68,137.62,3.6324]
[1725029008219,3.6315,137.67,137.63,3.6322]
[1725029008416,0.0516419,137.66,137.64,0.05135273]
[1725029009304,0.0516419,137.66,137.64,3.68325273]
[1725029010517,0.0516419,137.66,137.65,3.6318]
[1725029014722,0.0516419,137.66,137.64,3.68325273]
[1725029015229,0.0516419,137.66,137.64,0.05135273]
[1725029016111,3.6318,137.65,137.64,0.05135273]
[1725029016417,0.0516419,137.66,137.64,0.05135273]
[1725029016814,34.8616419,137.66,137.64,0.05135273]
[1725029017320,38.4876055,137.66,137.64,0.05135273]
[1725029017511,3.6318,137.65,137.64,0.05135273]
[1725029018517,34.81,137.64,137.59,3.72219599]
[1725029018721,42.19,137.64,137.53,37.5235]